[Event "20th Delhi GM Open 2023"]
[Site "New Delhi"]
[Date "2023.03.25"]
[Round "4.8"]
[White "Krasenkow, Michal"]
[Black "Sharma Vivek"]
[Result "1-0"]
[ECO "D35"]
[WhiteElo "2527"]
[BlackElo "1859"]
[Annotator "TA"]
[PlyCount "64"]
[EventDate "2023.03.23"]
[EventType "swiss"]
[EventCountry "IND"]
[SourceTitle "playchess.com"]
[Source "ChessBase"]
[SourceQuality "1"]
[TimeControl "5400+30"]

{[%evp 12,64,15,17,18,13,8,13,38,12,29,12,13,25,175,176,230,230,224,228,225,197,215,227,220,227,232,216,226,216,239,239,268,277,276,269,333,327,335,327,327,316,373,358,366,345,433,398,441,451,568,533,691,681,757]} 1. c4 {[%emt 0:00:02]} Nf6 {[%emt 0:00:56]} 2. Nc3 {[%emt 0:00:34]} e6 {[%emt 0:00:43]} 3. Nf3 {[%emt 0:00:06]} d5 {[%emt 0:01:51]} 4. d4 {[%emt 0:00:07]} Be7 {[%emt 0:04:38]} 5. Qc2 {[%emt 0:00:12]} O-O {[%emt 0:00:29]} 6. cxd5 {[%emt 0:00:04]} exd5 {[%emt 0:00:35]} 7. Bg5 {[%emt 0:00:06] 7.Bf4 is vanishing.} h6 {[%emt 0:00:25] D35: Queen's Gambit Declined: Exchange Variation.} 8. Bh4 {[%emt 0:00:23]} Re8 {[%emt 0:00:57]} 9. e3 {[%emt 0:00:14]} b6 {[%emt 0:07:32] The position is equal.} 10. Ne5 {[%emt 0:03:43] White wants to play Bb5.} Bb7 {[%emt 0:03:05]} 11. Bd3 {[%emt 0:02:34][%cal Bf1d3,Bd3b5,Bb5c6][%mdl 32]} Nbd7 {[%emt 0:02:07]} 12. Bb5 {[%emt 0:03:03] [#]} Rf8 $146 {[%emt 0:07:01]} (12... Nxe5 $1 $11 {and Black stays safe.} 13. Bxe8 (13. dxe5 Nd7 $17) 13... Nxe8 14. Bxe7 Qxe7) ({Predecessor:} 12... c6 13. Bxc6 Qc7 14. Bxf6 Bxf6 15. Nxd5 Qd6 16. Nxf6+ Kh8 17. Nxf7# {1-0 Codreanu,A (1823)-Baltagaru,M (1115) ROM-chT U16 Iasi 2018 (1.3)}) 13. Bc6 $1 $18 {[%emt 0:04:00]} Rb8 {[%emt 0:13:28]} (13... Bxc6 $142 14. Nxc6 Qe8) 14. Nxd7 {[%emt 0:11:34]} Nxd7 {[%emt 0:00:30]} 15. Bxe7 {[%emt 0:00:30]} (15. Bxd5 $2 Bxh4 16. Bxb7 Rxb7 $19) 15... Qxe7 {[%emt 0:00:30]} 16. Nxd5 {[%emt 0:00:30]} ({Don't take} 16. Bxd5 $6 Nf6 17. Bxb7 Rxb7 $16) 16... Qe6 {[%emt 0:00:30]} 17. Bxb7 {[%emt 0:00:30]} (17. Nxc7 $2 {perishes.} Qxc6 18. Qxc6 Bxc6 $19) 17... Rxb7 {[%emt 0:00:30] [#]} 18. Qc6 {[%emt 0:00:30][%mdl 576] Decoy} Qxc6 {[%emt 0:03:05]} (18... Rfb8 19. Qxe6) 19. Ne7+ {[%emt 0:00:02]} Kh7 {[%emt 0:00:12]} 20. Nxc6 {[%emt 0:00:02]} Nb8 {[%emt 0:02:14] [#]} 21. Rc1 {[%emt 0:00:24]} Nxc6 {[%emt 0:00:43]} 22. Rxc6 {[%emt 0:00:02][%mdl 4096] Endgame KRR-KRR} Rd8 {[%emt 0:00:14]} 23. Kd2 {[%emt 0:00:46]} Kg8 {[%emt 0:00:30]} 24. Rhc1 {[%emt 0:00:14]} Rd7 {[%emt 0:00:02]} 25. Kd3 {[%emt 0:00:10]} Kf8 {[%emt 0:00:11]} 26. e4 {[%emt 0:00:07][%cal Be3e4,Be4e5][%mdl 32]} Ke7 {[%emt 0:00:08]} 27. e5 {[%emt 0:00:26]} Kd8 {[%emt 0:00:07]} 28. Ke4 {[%emt 0:00:22]} Re7 {[%emt 0:01:18]} 29. d5 {[%emt 0:00:22]} b5 {[%emt 0:00:43]} 30. b4 {[%emt 0:01:25] White is clearly winning.} Rb6 {[%emt 0:00:14]} 31. f4 {[%emt 0:01:07][%cal Od5d6] And now d6! would win.} g6 {[%emt 0:01:01]} 32. g4 {[%emt 0:00:17][%cal Od5d6] Strongly threatening d6!} Rb8 {[%emt 0:00:27] Black did not feel at home in the position after the opening.   Weighted Error Value: White=0.05 (flawless) /Black=0.41} 1-0

[Event "20th Delhi GM Open 2023"]
[Site "New Delhi"]
[Date "2023.03.25"]
[Round "4.9"]
[White "Anilkumar, O.T."]
[Black "Paichadze, Luka"]
[Result "0-1"]
[ECO "D02"]
[WhiteElo "1840"]
[BlackElo "2515"]
[Annotator "TA"]
[PlyCount "136"]
[EventDate "2023.03.23"]
[EventType "swiss"]
[EventCountry "IND"]
[SourceTitle "playchess.com"]
[Source "ChessBase"]
[SourceQuality "1"]
[TimeControl "5400+30"]

{[%evp 18,136,0,0,1,-4,0,0,5,0,14,-16,0,-505,-27,-36,-26,-60,-60,-58,-45,-48,0,-23,-19,-33,-22,-39,-29,-41,-18,-47,-11,-20,-18,-15,0,-20,23,27,60,-34,-34,-41,-32,-43,-43,-43,-43,-52,-41,-57,-53,-96,-96,-337,-280,-431,-327,-459,-320,-333,-353,-327,-126,-250,-240,-226,-222,-243,-219,-256,-256,-255,-231,-238,-231,-291,-276,-258,-254,-432,-230,-225,-270,-244,-227,-412,-170,-360,0,0,0,-262,-8,-33,-48,-379,-381,-364,-354,-341,-279,-279,-244,-280,-256,-237,-241,-270,-22,-39,-14,-29978,-29979,-29979,-29980,-29980,-29981,-29981,-29982]} 1. d4 {[%emt 0:00:03]} Nf6 {[%emt 0:00:05]} 2. Nf3 {[%emt 0:00:13]} e6 {[%emt 0:00:09]} 3. Bf4 {[%emt 0:00:10]} d5 {[%emt 0:00:54]} 4. e3 {[%emt 0:00:04]} Bd6 {[%emt 0:01:10]} 5. c3 {[%emt 0:00:28]} O-O {[%emt 0:01:31]} 6. Bd3 {[%emt 0:01:12]} c5 {[%emt 0:00:23]} 7. Nbd2 {[%emt 0:01:38]} Nc6 {[%emt 0:05:16]} 8. Bg3 {[%emt 0:00:12]} Qe7 {[%emt 0:18:29]} 9. Ne5 {[%emt 0:01:18]} Nd7 {[%emt 0:02:51]} 10. f4 {[%emt 0:00:09]} f5 {[%emt 0:04:09] D02: 1 d4 d5 2 Nf3 sidelines, including 2...Nf6 3 g3 and 2...Nf6 3 Bf4.} 11. Ndf3 {[%emt 0:01:55]} Nf6 {[%emt 0:01:09]} 12. Bh4 {[%emt 0:10:57][%cal Og2g4]} Qe8 {[%emt 0:00:51] The position is equal.} 13. O-O {[%emt 0:00:19]} Ne4 {[%emt 0:04:41]} 14. Kh1 {[%emt 0:09:56]} Nxe5 {[#]} 15. Rg1 $146 {[%mdl 8192] [#]} (15. dxe5 $11 {and White has nothing to worry.} Be7 16. Bxe7 Qxe7 17. g4) ({Predecessor:} 15. fxe5 Be7 16. Bxe7 Qxe7 17. c4 cxd4 18. exd4 Bd7 19. cxd5 exd5 20. Ng1 Qb4 21. Ne2 {1-0 Annaberdiev,M (2457)-Ayyad,M (2137) Asia Classical 15th 2006 (7)}) 15... Bd7 $2 16. dxe5 {[%emt 0:05:19]} Be7 {[%emt 0:07:13]} 17. Qe2 {[%emt 0:36:35]} Bxh4 {[%emt 0:01:33]} 18. Nxh4 {[%emt 0:00:08] [#]} Qh5 $1 {[%emt 0:07:06][%mdl 64] Deflection} 19. g3 {[%emt 0:01:59]} Qh6 {[%emt 0:04:56]} (19... Qxe2 $15 20. Bxe2 g5 21. fxg5 Nxg5) 20. Bxe4 {[%emt 0:02:24]} fxe4 {[%emt 0:01:24]} 21. Rad1 {[%emt 0:06:06]} Bc6 {[%emt 0:02:37]} 22. h3 {[%emt 0:01:28]} a5 {[%emt 0:01:19]} 23. Kh2 {[%emt 0:00:12]} Kh8 {[%emt 0:03:24]} 24. Qg4 {[%emt 0:01:38][%cal Oc3c4]} Be8 {[%emt 0:01:17]} 25. Rd2 {[%emt 0:05:45]} b5 {[%emt 0:05:58]} 26. Ng2 {[%emt 0:04:13]} Bc6 {[%emt 0:04:32]} 27. h4 {[%emt 0:00:21]} Be8 {[%emt 0:03:07]} 28. Qg5 {[%emt 0:00:12]} Qh5 {[%emt 0:08:14]} 29. Qxh5 {[%emt 0:00:19]} ({White should play} 29. Qe7 $14 Bg6 30. Qxe6 (30. Qxc5 Bf5 $11)) 29... Bxh5 $15 {[%emt 0:00:07]} 30. Kh3 {[%emt 0:00:03] Wards off Bg4+} Bg6 {[%emt 0:00:29]} 31. g4 {[%emt 0:00:03][%cal Of4f5]} h5 {[%emt 0:00:11]} 32. gxh5 {[%emt 0:03:37]} Bxh5 {[%emt 0:00:02]} 33. Ne1 {[%emt 0:00:03]} Kh7 {[%emt 0:02:50]} 34. Rg5 {[%emt 0:00:11]} g6 {[%emt 0:02:25]} 35. f5 {[%emt 0:04:15]} Rxf5 {[%emt 0:00:22]} 36. Ng2 $2 {[%emt 0:01:12]} (36. Rxf5 $17 gxf5 37. Ng2) 36... Raf8 {[%emt 0:02:16] Hoping for ...Rf1.} 37. a4 {[%emt 0:00:59]} (37. Rxf5 $142 Rxf5 38. Kh2) 37... b4 {[%emt 0:02:15]} (37... bxa4 $2 38. Nf4 Rxf4 39. exf4 $19) 38. cxb4 {[%emt 0:00:26]} (38. Rxf5 {only move.} Rxf5 39. cxb4 Rf3+ 40. Kh2 cxb4 41. Rc2) 38... cxb4 {[%emt 0:01:44]} 39. Rxf5 {[%emt 0:02:09]} Rxf5 $19 {[%emt 0:00:02][%mdl 4096] Endgame KRB-KRN} (39... exf5 40. Rxd5 Be2 41. Rxa5 $18) (39... gxf5 40. Nf4 Bf7 41. Rc2 $11) 40. Kg3 {[%emt 0:00:02]} Rxe5 $2 {[%emt 0:01:56]} (40... Rf3+ $19 41. Kh2 b3) 41. Nf4 {[%emt 0:00:03]} (41. Rc2 $17) 41... b3 $1 {[%emt 0:01:09]} 42. Rf2 {[%emt 0:00:53]} Bf3 {[%emt 0:00:21]} 43. Nh3 {[%emt 0:01:23]} Kg7 {[%emt 0:00:34]} 44. Ng5 {[%emt 0:00:09]} Kf6 {[%emt 0:00:35] aiming for ...Rf5.} 45. Rf1 {[%emt 0:00:01]} Ke7 {[%emt 0:00:47] ...Rf5 is the strong threat.} 46. Rc1 {[%emt 0:00:06]} Rf5 {[%emt 0:00:30]} 47. Rc7+ {[%emt 0:00:19]} Kd6 {[%emt 0:00:12]} 48. Ra7 {[%emt 0:00:08]} Be2 {[%emt 0:00:25] Against Ra6+} 49. Rxa5 $2 {[%emt 0:00:15]} (49. Rb7 {was called for.} Bc4 50. Rf7) 49... Bd3 {[%emt 0:00:09]} (49... Rf1 $142 50. Ra8 Bc4) 50. Ra7 {[%emt 0:00:10]} Rf1 {[%emt 0:00:48]} 51. Rb7 {[%emt 0:00:06]} Re1 {[%emt 0:00:46]} 52. Rb6+ $2 {[%emt 0:01:17]} (52. Rxb3 Rxe3+ 53. Kf2) 52... Kc5 {[%emt 0:00:31]} (52... Ke5 $142 $1 53. Nf7+ (53. Rxe6+ $2 {loses.} Kf5 $19) 53... Kf6) 53. a5 $2 {[%emt 0:00:23]} (53. Rxb3 e5 54. Ne6+ Kc6 55. a5) 53... Rxe3+ $2 {[%emt 0:00:26]} ({Black should try} 53... e5 $1 $19 54. Rxb3 (54. Ne6+ $2 Kc4 $19) 54... Rxe3+ 55. Kf2 Re2+ 56. Kg3 Re1 57. Ne6+ Kc4 58. Rc3+ Kb4) 54. Kf4 $11 {[%emt 0:00:02]} Re2 {[%emt 0:00:38]} 55. Rxb3 {[%emt 0:00:42][%mdl 8192] [#]} (55. Nxe6+ $11 Kc4 56. Rc6+ Kb4 57. Rb6+ Kxa5 58. Rxb3) 55... d4 $2 {[%emt 0:00:35]} (55... Rf2+ $1 $19 56. Kg3 Rf6) 56. a6 {[%emt 0:01:58][%mdl 64] Deflection} (56. Ke5 {is more complex.} Bc4 57. Rb6 Bd5 58. Nxe6+ Bxe6 59. b4+) 56... Bxa6 {[%emt 0:00:32]} 57. Nxe4+ $2 {[%emt 0:00:03][%mdl 8192]} (57. Nxe6+ $15 Kc4 58. Rb6) 57... Kd5 $19 {[%emt 0:00:13]} 58. Nf6+ {[%emt 0:00:04]} Kc4 {[%emt 0:00:05]} 59. Rb6 {[%emt 0:00:02]} e5+ {[%emt 0:00:53]} 60. Kf3 {[%emt 0:00:15]} Re3+ {[%emt 0:00:03]} 61. Kf2 {[%emt 0:00:01]} Bb5 {[%emt 0:00:20]} 62. Ng4 {[%emt 0:01:32]} Re4 {[%emt 0:00:04]} 63. Rxg6 {[%emt 0:00:03] [#]} d3 $2 {[%emt 0:00:52]} (63... Bd7 $1 $19 64. b3+ Kd3) 64. Ne3+ $11 {[%emt 0:00:02]} Kb3 {[%emt 0:01:09][%cal Od3d2] And now ...d2! would win.} (64... Kb4 $5 {[%cal Rd3d2]} 65. Nd5+ Kc5 $15) 65. Rg4 $2 {[%emt 0:02:12][%mdl 8192]} (65. Rb6 $11 Kb4 66. Nd5+ Kc4 67. Nc3) 65... Rxg4 {[%emt 0:00:10] Black mates.} 66. Nxg4 {[%emt 0:00:10]} d2 {[%emt 0:00:28]} ({Worse is} 66... Kxb2 67. Ke3 $11) 67. Ne3 {[%emt 0:00:03]} Kxb2 {[%emt 0:00:42]} 68. h5 {[%emt 0:00:04]} Kc1 {[%emt 0:00:22] An entertaining game by Paichadze.   Weighted Error Value: White=0.62/Black=0.57} 0-1

[Event "20th Delhi GM Open 2023"]
[Site "New Delhi"]
[Date "2023.03.26"]
[Round "5.1"]
[White "Rakhmatullaev, Almas"]
[Black "Sethuraman, S.P."]
[Result "1/2-1/2"]
[ECO "B22"]
[WhiteElo "2275"]
[BlackElo "2639"]
[Annotator "TA"]
[PlyCount "105"]
[EventDate "2023.03.23"]
[EventType "swiss"]
[EventCountry "IND"]
[SourceTitle "playchess.com"]
[Source "ChessBase"]
[SourceQuality "1"]
[TimeControl "5400+30"]

{[%evp 25,105,33,63,54,93,96,130,130,125,110,107,111,158,153,144,131,134,122,129,118,124,131,151,156,156,137,138,145,154,153,161,141,135,126,143,127,156,143,176,172,204,200,208,175,228,220,259,182,195,83,81,83,77,70,70,70,70,70,87,52,52,55,55,37,37,37,55,37,37,37,37,37,37,0,0,0,37,0,0,0,37,0]} 1. e4 {[%emt 0:00:20]} c5 {[%emt 0:00:23]} 2. c3 {[%emt 0:00:31]} Nf6 {[%emt 0:01:40]} 3. e5 {[%emt 0:00:50]} Nd5 {[%emt 0:00:07]} 4. d4 {[%emt 0:00:07]} cxd4 {[%emt 0:00:36]} 5. Nf3 {[%emt 0:00:07]} Nc6 {[%emt 0:03:16]} 6. Bc4 {[%emt 0:00:47]} Nb6 {[%emt 0:01:08]} 7. Bb3 {[%emt 0:00:08]} d5 {[%emt 0:03:39]} 8. exd6 {[%emt 0:05:13]} Qxd6 {[%emt 0:00:52]} 9. O-O {[%emt 0:02:59]} Bf5 {[%emt 0:05:17]} 10. Nxd4 {[%emt 0:05:26]} Nxd4 {[%emt 0:00:59]} 11. cxd4 {[%emt 0:00:03][%cal Bc3d4,Bd4d5][%mdl 32]} e6 {[%emt 0:07:44]} 12. Nc3 {[%emt 0:00:12]} Be7 {[%emt 0:00:46]} 13. Qf3 {[%emt 0:01:29]} Qd7 {[%emt 0:02:15]} 14. a4 {[%emt 0:01:52][%cal Ba2a4,Ba4a5][%mdl 32] is the legacy move (14.d5). B22: Sicilian: 2 c3.} O-O {[%emt 0:03:47]} 15. a5 {[%emt 0:03:56]} Nc8 {[%emt 0:00:01]} 16. d5 {[%emt 0:03:08] White is better.} Nd6 {[%emt 0:03:01]} 17. Bf4 {[%emt 0:02:46]} Rad8 {[%emt 0:04:14]} 18. Rfe1 {[%emt 0:01:52] [#]} Kh8 $146 {[%emt 0:06:05]} ({Black should play} 18... Bf6) ({Predecessor:} 18... Bf6 19. dxe6 Bxe6 20. Ba4 Qc8 21. Bxd6 Rxd6 22. Ne4 Rd5 23. Nxf6+ gxf6 24. Qxf6 Rf5 {1-0 Yordanova,S (2184)-Doncheva,M (2065) BUL-ch sf (Women) 2005 (4)}) 19. h3 $1 $16 {[%emt 0:03:45]} Bf6 {[%emt 0:13:49]} 20. Rad1 {[%emt 0:03:09] aiming for dxe6.} e5 {[%emt 0:00:13]} 21. Bxe5 {[%emt 0:00:58]} Bxe5 {[%emt 0:00:04]} 22. Rxe5 {[%emt 0:00:05]} Bg6 {[%emt 0:01:56]} 23. Qe3 {[%emt 0:09:26]} a6 {[%emt 0:04:35] Black is weak on the dark squares} 24. Qb6 {[%emt 0:01:17]} Nc8 {[%emt 0:00:42]} 25. Qc5 {[%emt 0:01:19][%cal Od5d6] d6! would be deadly. White is much more active.} Qd6 {[%emt 0:02:17]} 26. Qxd6 {[%emt 0:02:14]} Nxd6 {[%emt 0:00:27]} 27. Re7 {[%emt 0:01:24]} Rc8 {[%emt 0:02:55]} 28. Rd7 {[%emt 0:05:36]} Rfd8 {[%emt 0:00:07]} 29. Rxd8+ {[%emt 0:00:12]} Rxd8 {[%emt 0:00:07]} 30. Re1 {[%emt 0:01:12]} Rd7 {[%emt 0:04:37]} 31. f4 {[%emt 0:01:55]} h5 {[%emt 0:09:17] [#]} 32. g4 $1 {[%emt 0:02:15]} hxg4 {[%emt 0:00:08]} 33. hxg4 {[%emt 0:00:04]} Bd3 {[%emt 0:00:11]} 34. Re3 {[%emt 0:04:58]} Bc4 {[%emt 0:00:05] [#]} (34... Bb5 $142 35. Kf2 Nc4) 35. Ba4 $1 $18 {[%emt 0:01:03]} Nb5 {[%emt 0:07:56]} 36. b3 {[%emt 0:02:01]} Bxd5 {[%emt 0:00:26]} 37. Bxb5 {[%emt 0:00:16]} ({But not} 37. Nxb5 axb5 38. Bxb5 Rc7) (37. Re8+ $18 Kh7 38. Nxb5 axb5 39. Bxb5) 37... axb5 $16 {[%emt 0:00:05]} 38. Nxd5 {[%emt 0:00:25]} Rxd5 $18 {[%emt 0:00:05][%mdl 4096] Endgame KR-KR} 39. Re7 {[%emt 0:00:06][%csl LRb7,LRf7]} Rd3 $1 {[%emt 0:01:20]} 40. Rxf7 {[%emt 0:00:22]} Rxb3 {[%emt 0:00:12]} 41. Rxb7 {[%emt 0:00:18] Strongly threatening g5.} b4 $1 {[%emt 0:03:37]} 42. a6 {[%emt 0:00:41] White threatens a7 and mate.} Ra3 {[%emt 0:00:25]} 43. a7 {[%emt 0:00:40] Intending Rb8+ and mate.} Kh7 {[%emt 0:00:05]} 44. Rxb4 {[%emt 0:01:04] Black must now prevent Rb7.} (44. f5 {seems wilder.} Kh6 45. Kf2 b3 46. Rb6+) 44... Rxa7 {[%emt 0:00:18]} 45. Kf2 {[%emt 0:00:15]} Ra3 {[%emt 0:00:35]} 46. Re4 {[%emt 0:00:09]} Kg6 {[%emt 0:00:13]} 47. Re3 {[%emt 0:00:02]} Ra1 {[%emt 0:00:07]} 48. Kf3 {[%emt 0:00:11]} Rf1+ {[%emt 0:00:07]} 49. Ke4 {[%emt 0:00:06]} Rg1 {[%emt 0:00:15]} 50. Kf3 {[%emt 0:00:06]} Rf1+ {[%emt 0:00:03]} 51. Ke4 {[%emt 0:00:04]} Rg1 {[%emt 0:00:04]} 52. Kf3 {[%emt 0:00:04]} Rf1+ {[%emt 0:00:03]} 53. Ke4 {[%emt 0:00:04] Black escapes into a draw.   Weighted Error Value: White=0.12 (very precise) /Black=0.11 (very precise)} 1/2-1/2

[Event "20th Delhi GM Open 2023"]
[Site "New Delhi"]
[Date "2023.03.26"]
[Round "5.2"]
[White "Aravindh, Chithambaram VR."]
[Black "Nitin, S.."]
[Result "1-0"]
[ECO "E73"]
[WhiteElo "2607"]
[BlackElo "2381"]
[Annotator "TA"]
[PlyCount "87"]
[EventDate "2023.03.23"]
[EventType "swiss"]
[EventCountry "IND"]
[SourceTitle "playchess.com"]
[Source "ChessBase"]
[SourceQuality "1"]
[TimeControl "5400+30"]

{[%evp 14,87,58,39,35,25,53,71,69,52,57,28,30,29,70,9,149,154,143,139,145,145,143,126,173,166,177,175,184,173,207,197,205,214,208,189,284,285,289,285,291,273,274,266,312,304,303,301,291,264,263,274,282,288,306,285,359,296,350,345,622,605,603,585,619,442,479,388,899,872,1309,1304,1472,1339,29988,936]} 1. d4 {[%emt 0:00:04]} Nf6 {[%emt 0:04:28]} 2. c4 {[%emt 0:00:10]} g6 {[%emt 0:00:26]} 3. Nc3 {[%emt 0:00:09]} Bg7 {[%emt 0:00:14]} 4. e4 {[%emt 0:00:08]} d6 {[%emt 0:00:05]} 5. Be2 {[%emt 0:00:10]} O-O {[%emt 0:00:20]} 6. Be3 {[%emt 0:00:13]} e5 {[%emt 0:06:36]} 7. d5 {[%emt 0:00:09]} Na6 {[%emt 0:00:17]} 8. h4 {[%emt 0:00:34][%cal Bh2h4,Bh4h5][%mdl 32]} Nc5 {[%emt 0:14:20] E73: King's Indian: Averbakh Variation without 6...c5.} 9. Qc2 {[%emt 0:00:09]} a5 {[%emt 0:03:49]} 10. h5 {[%emt 0:01:36]} Bd7 {[%emt 0:03:48] White is better.} 11. O-O-O {[%emt 0:23:47]} a4 {[%emt 0:03:49]} 12. Nh3 {[%emt 0:14:31] [#]} (12. h6 $5 Bh8 $8 13. Bxc5 dxc5 14. d6 $14 (14. Nf3 Ne8 $11)) 12... a3 $146 {[%emt 0:14:36] And now ...axb2+ would win.} ({Predecessor:} 12... Qe7 13. hxg6 fxg6 14. f3 Nh5 15. Bf2 Bh6+ 16. Kb1 b6 17. g4 Nf4 18. Nxf4 Bxf4 {0-1 Tsvetkov,A (2358)-Kovalenko,I (2645) Titled Tuesday intern op 01st Sept blitz 2020 (5)}) 13. b3 {[%emt 0:00:12]} Qe7 {[%emt 0:06:32][%cal Of6e4]} 14. g3 {[%emt 0:31:11]} ({White should try} 14. h6 $14 Bh8 15. Bg5) 14... b6 {[%emt 0:04:29] White now steadily converts the win.} (14... Nxh5 $11 {remains equal.} 15. Bxh5 gxh5) 15. hxg6 $1 $16 {[%emt 0:08:51]} fxg6 {[%emt 0:00:31] [#]} 16. f3 $1 {[%emt 0:00:05] Wards off Ng4} Nh5 {[%emt 0:04:05] [#]} 17. Rdg1 {[%emt 0:00:06]} Qf6 {[%emt 0:16:21]} 18. Nf2 {[%emt 0:05:06]} Na6 {[%emt 0:02:51]} (18... Qd8 $16) 19. Nd3 $18 {[%emt 0:01:27]} Nc5 {[%emt 0:03:55]} 20. Nb4 {[%emt 0:00:14]} Rfe8 {[%emt 0:02:28]} 21. Kb1 {[%emt 0:03:47]} Qf7 {[%emt 0:02:08]} 22. Nb5 {[%emt 0:01:47]} Rec8 {[%emt 0:01:13]} 23. Bc1 {[%emt 0:00:07]} Qf8 {[%emt 0:00:59]} 24. Nxa3 {[%emt 0:02:13]} c6 {[%emt 0:01:00]} (24... Bh6 $142 25. Nb5 Bxc1) 25. dxc6 {[%emt 0:01:44]} Bxc6 {[%emt 0:00:02]} 26. Nxc6 {[%emt 0:00:08]} Rxc6 {[%emt 0:00:03]} 27. Qd1 {[%emt 0:00:21]} Ne6 {[%emt 0:00:46]} 28. Nb5 {[%emt 0:00:31] Threatens to win with Qd5.} Nf6 {[%emt 0:01:06] Prevents Qd5.} 29. Bf1 {[%emt 0:00:06]} Nc7 {[%emt 0:00:23]} 30. Nc3 {[%emt 0:03:07]} Ne6 {[%emt 0:01:26]} 31. Bb2 {[%emt 0:00:09]} Rc5 {[%emt 0:01:40]} 32. Nb5 {[%emt 0:01:25] Repels Nd4} Rc6 {[%emt 0:00:30]} 33. Rh2 {[%emt 0:00:41]} Rd8 {[%emt 0:00:09]} 34. a4 {[%emt 0:00:52]} h5 {[%emt 0:00:11]} 35. Ka2 {[%emt 0:00:38]} Bh6 {[%emt 0:00:28]} 36. f4 {[%emt 0:00:42]} Ng4 $2 {[%emt 0:00:40]} (36... Nc5 37. Bh3 (37. fxe5 dxe5 38. Qf3 Ng4 $17) 37... Qe8) 37. Bh3 {[%emt 0:00:13][%cal Bf1h3,Bh3e6,Be6d5][%mdl 32]} Nxh2 {[%emt 0:00:19]} 38. Bxe6+ {[%emt 0:00:05]} Kh7 {[%emt 0:00:03] Black is weak on the light squares} 39. Rh1 {[%emt 0:00:52][%cal Bg1h1,Bh1h2,Bh2h5][%mdl 32]} ({Not} 39. fxe5 dxe5 40. Bd5 Qf2 $17) 39... exf4 {[%emt 0:00:02]} 40. Rxh2 {[%emt 0:00:40]} fxg3 $2 {[%emt 0:00:02] [#]} (40... d5 41. Bxd5 fxg3) 41. Rxh5 $1 {[%emt 0:00:28][%mdl 576] Deflection} g2 {[%emt 0:01:25]} (41... gxh5 42. Bf5+) 42. Rh2 {[%emt 0:00:16]} d5 {[%emt 0:02:04]} 43. Bxd5 {[%emt 0:00:14]} Qf2 {[%emt 0:00:02]} 44. Qd4 {[%emt 0:00:17] Excellently played by Aravindh!   Weighted Error Value: White=0.21 (precise) /Black=0.55} (44. Bg8+ $142 Kxg8 45. Qxd8+ Qf8 46. Qd5+ Qf7 47. Qxc6 Kh7 48. Qc8 Qg7 49. Bxg7) 1-0